[Event "Titled Tuesday Blitz December 20 Early 2022"]
[White "GregLeBarbare"]
[Black "Djeno, Drago"]
[BlackFideId "14400421"]
[WhiteElo "2242"]
[BlackElo "2223"]
[Result "0-1"]
[Round "11"]
[TimeControl "180+2"]
[Date "2022.12.20"]
[WhiteClock "0:00:02"]
[BlackClock "0:01:37"]

1. d4 {[%clk 0:02:07]}  Nf6 {[%clk 0:02:58]} 2. Bf4 {[%clk 0:02:06]}  c5 {[%clk 0:02:57]} 3. e3 {[%clk 0:02:02]}  Nd5 {[%clk 0:02:56]} 4. Bg3 {[%clk 0:02:02]}  Qb6 {[%clk 0:02:56]} 5. Nc3 {[%clk 0:01:45]}  Nxc3 {[%clk 0:02:54]} 6. bxc3 {[%clk 0:01:45]}  Qa5 {[%clk 0:02:52]} 7. Qd2 {[%clk 0:01:34]}  g6 {[%clk 0:02:51]} 8. Nf3 {[%clk 0:01:27]}  Bg7 {[%clk 0:02:49]} 9. Be2 {[%clk 0:01:27]}  d6 {[%clk 0:02:46]} 10. O-O {[%clk 0:01:27]}  O-O {[%clk 0:02:46]} 11. Rfd1 {[%clk 0:00:57]}  Nc6 {[%clk 0:02:45]} 12. c4 {[%clk 0:00:53]}  Qxd2 {[%clk 0:02:45]} 13. Rxd2 {[%clk 0:00:54]}  Bg4 {[%clk 0:02:44]} 14. c3 {[%clk 0:00:53]}  Na5 {[%clk 0:02:40]} 15. h3 {[%clk 0:00:50]}  Be6 {[%clk 0:02:40]} 16. Rb2 {[%clk 0:00:46]}  b6 {[%clk 0:02:38]} 17. Nd2 {[%clk 0:00:46]}  Rac8 {[%clk 0:02:37]} 18. Rc1 {[%clk 0:00:41]}  Rfd8 {[%clk 0:02:20]} 19. Rbb1 {[%clk 0:00:35]}  Bf5 {[%clk 0:02:20]} 20. e4 {[%clk 0:00:34]}  Be6 {[%clk 0:02:18]} 21. d5 {[%clk 0:00:30]}  Bd7 {[%clk 0:02:18]} 22. f4 {[%clk 0:00:23]}  Ba4 {[%clk 0:02:11]} 23. Bd1 {[%clk 0:00:20]}  Be8 {[%clk 0:02:11]} 24. Be2 {[%clk 0:00:17]}  h5 {[%clk 0:02:08]} 25. Nf3 {[%clk 0:00:17]}  Bd7 {[%clk 0:02:03]} 26. Rc2 {[%clk 0:00:12]}  Rc7 {[%clk 0:02:03]} 27. Re1 {[%clk 0:00:12]}  Bc8 {[%clk 0:02:03]} 28. Bd3 {[%clk 0:00:12]}  Ba6 {[%clk 0:02:03]} 29. Nd2 {[%clk 0:00:13]}  Bh6 {[%clk 0:02:02]} 30. Bh2 {[%clk 0:00:07]}  e6 {[%clk 0:02:02]} 31. g3 {[%clk 0:00:07]}  Re7 {[%clk 0:02:00]} 32. Rcc1 {[%clk 0:00:04]}  Rde8 {[%clk 0:01:55]} 33. Kf2 {[%clk 0:00:03]}  Bg7 {[%clk 0:01:49]} 34. g4 {[%clk 0:00:01]}  hxg4 {[%clk 0:01:46]} 35. hxg4 {[%clk 0:00:02]}  g5 {[%clk 0:01:47]} 36. f5 {[%clk 0:00:02]}  Rd8 {[%clk 0:01:37]} 0-1


[Site "https://www.chess.com"]

[Event "Titled Tuesday Blitz December 20 Early 2022"]
[White "Groz, Jacky"]
[Black "Legendinunknown"]
[WhiteFideId "626643"]
[WhiteElo "2052"]
[BlackElo "2731"]
[Result "1/2-1/2"]
[Round "11"]
[TimeControl "180+2"]
[Date "2022.12.20"]
[WhiteClock "0:00:04"]
[BlackClock "0:00:09"]

1. e4 {[%clk 0:02:59]}  e5 {[%clk 0:02:58]} 2. Nf3 {[%clk 0:02:59]}  Nc6 {[%clk 0:02:55]} 3. Bc4 {[%clk 0:02:57]}  d6 {[%clk 0:02:53]} 4. d4 {[%clk 0:02:54]}  Nf6 {[%clk 0:02:51]} 5. Ng5 {[%clk 0:02:40]}  d5 {[%clk 0:02:33]} 6. exd5 {[%clk 0:02:38]}  Nxd4 {[%clk 0:02:33]} 7. O-O {[%clk 0:02:20]}  Bd6 {[%clk 0:02:30]} 8. f4 {[%clk 0:02:06]}  O-O {[%clk 0:02:24]} 9. c3 {[%clk 0:01:57]}  Nf5 {[%clk 0:02:23]} 10. fxe5 {[%clk 0:01:55]}  Bxe5 {[%clk 0:02:24]} 11. Nf3 {[%clk 0:01:46]}  Bd6 {[%clk 0:02:14]} 12. Nd4 {[%clk 0:01:20]}  Nxd4 {[%clk 0:01:32]} 13. Qxd4 {[%clk 0:01:18]}  Qe7 {[%clk 0:01:33]} 14. Kh1 {[%clk 0:01:12]}  Ng4 {[%clk 0:01:31]} 15. Bf4 {[%clk 0:01:06]}  Bxf4 {[%clk 0:01:29]} 16. Qxf4 {[%clk 0:01:02]}  Qe3 {[%clk 0:01:02]} 17. Nd2 {[%clk 0:00:39]}  Bd7 {[%clk 0:00:57]} 18. Rae1 {[%clk 0:00:33]}  Qxf4 {[%clk 0:00:53]} 19. Rxf4 {[%clk 0:00:34]}  Rae8 {[%clk 0:00:53]} 20. Rxe8 {[%clk 0:00:21]}  Rxe8 {[%clk 0:00:54]} 21. Nf3 {[%clk 0:00:22]}  Ne3 {[%clk 0:00:49]} 22. h3 {[%clk 0:00:18]}  Kf8 {[%clk 0:00:45]} 23. Bb3 {[%clk 0:00:17]}  f6 {[%clk 0:00:40]} 24. Kg1 {[%clk 0:00:14]}  Nf5 {[%clk 0:00:38]} 25. Kf2 {[%clk 0:00:12]}  Nd6 {[%clk 0:00:37]} 26. Nd2 {[%clk 0:00:09]}  a5 {[%clk 0:00:35]} 27. c4 {[%clk 0:00:09]}  b6 {[%clk 0:00:34]} 28. Bc2 {[%clk 0:00:09]}  Kg8 {[%clk 0:00:31]} 29. Rf3 {[%clk 0:00:09]}  Re5 {[%clk 0:00:23]} 30. Re3 {[%clk 0:00:09]}  Nf7 {[%clk 0:00:21]} 31. Nf3 {[%clk 0:00:07]}  Rxe3 {[%clk 0:00:20]} 32. Kxe3 {[%clk 0:00:08]}  g6 {[%clk 0:00:20]} 33. b3 {[%clk 0:00:08]}  Kf8 {[%clk 0:00:20]} 34. Kd4 {[%clk 0:00:08]}  Ke7 {[%clk 0:00:19]} 35. a3 {[%clk 0:00:09]}  Kd6 {[%clk 0:00:19]} 36. b4 {[%clk 0:00:09]}  axb4 {[%clk 0:00:18]} 37. axb4 {[%clk 0:00:10]}  c5+ {[%clk 0:00:19]} 38. dxc6 {[%clk 0:00:11]}  Bxc6 {[%clk 0:00:19]} 39. c5+ {[%clk 0:00:12]}  bxc5+ {[%clk 0:00:19]} 40. bxc5+ {[%clk 0:00:13]}  Kc7 {[%clk 0:00:19]} 41. Nd2 {[%clk 0:00:12]}  Bxg2 {[%clk 0:00:19]} 42. h4 {[%clk 0:00:10]}  Ne5 {[%clk 0:00:19]} 43. Be4 {[%clk 0:00:09]}  Nc6+ {[%clk 0:00:18]} 44. Kd5 {[%clk 0:00:07]}  Bh3 {[%clk 0:00:15]} 45. Nf3 {[%clk 0:00:05]}  Bc8 {[%clk 0:00:14]} 46. h5 {[%clk 0:00:05]}  f5 {[%clk 0:00:13]} 47. hxg6 {[%clk 0:00:05]}  hxg6 {[%clk 0:00:13]} 48. Bb1 {[%clk 0:00:05]}  Bb7 {[%clk 0:00:12]} 49. Nh4 {[%clk 0:00:05]}  Nd8+ {[%clk 0:00:12]} 50. Ke5 {[%clk 0:00:05]}  Be4 {[%clk 0:00:09]} 51. Bxe4 {[%clk 0:00:04]}  fxe4 {[%clk 0:00:10]} 52. Kxe4 {[%clk 0:00:04]}  Kc6 {[%clk 0:00:10]} 53. Nxg6 {[%clk 0:00:04]}  Kxc5 {[%clk 0:00:09]} 1/2-1/2


[Site "https://www.chess.com"]

[Event "Titled Tuesday Blitz December 20 Early 2022"]
[White "Hansch, Karsten"]
[Black "NovikovaGalina"]
[WhiteFideId "24692239"]
[WhiteElo "2248"]
[BlackElo "2400"]
[Result "1-0"]
[Round "11"]
[TimeControl "180+2"]
[Date "2022.12.20"]
[WhiteClock "0:00:22"]
[BlackClock "0:00:03"]

1. e4 {[%clk 0:03:00]}  e6 {[%clk 0:03:00]} 2. d4 {[%clk 0:03:00]}  d5 {[%clk 0:03:01]} 3. e5 {[%clk 0:03:01]}  c5 {[%clk 0:03:01]} 4. c3 {[%clk 0:03:01]}  Nc6 {[%clk 0:03:02]} 5. Nf3 {[%clk 0:03:01]}  Bd7 {[%clk 0:03:02]} 6. Be2 {[%clk 0:03:01]}  f6 {[%clk 0:03:03]} 7. O-O {[%clk 0:02:57]}  Qc7 {[%clk 0:03:03]} 8. Re1 {[%clk 0:02:51]}  O-O-O {[%clk 0:02:57]} 9. Bf4 {[%clk 0:02:43]}  h6 {[%clk 0:02:57]} 10. Bg3 {[%clk 0:02:42]}  f5 {[%clk 0:02:57]} 11. h4 {[%clk 0:02:36]}  g5 {[%clk 0:02:57]} 12. hxg5 {[%clk 0:02:36]}  hxg5 {[%clk 0:02:58]} 13. Nxg5 {[%clk 0:02:35]}  Nh6 {[%clk 0:02:59]} 14. Nd2 {[%clk 0:02:25]}  Be7 {[%clk 0:02:58]} 15. f4 {[%clk 0:02:22]}  Rdg8 {[%clk 0:02:57]} 16. Ndf3 {[%clk 0:02:18]}  Ng4 {[%clk 0:02:56]} 17. Rc1 {[%clk 0:02:10]}  Rg7 {[%clk 0:02:31]} 18. a3 {[%clk 0:02:05]}  Qd8 {[%clk 0:02:30]} 19. b4 {[%clk 0:02:02]}  Qe8 {[%clk 0:02:25]} 20. bxc5 {[%clk 0:01:48]}  Qh5 {[%clk 0:02:24]} 21. Nh3 {[%clk 0:01:48]}  Ne3 {[%clk 0:02:21]} 22. Nfg5 {[%clk 0:01:31]}  Ng4 {[%clk 0:00:55]} 23. Rb1 {[%clk 0:01:10]}  Na5 {[%clk 0:00:49]} 24. c4 {[%clk 0:01:01]}  Bxg5 {[%clk 0:00:43]} 25. fxg5 {[%clk 0:00:57]}  Nxc4 {[%clk 0:00:29]} 26. Bxc4 {[%clk 0:00:51]}  dxc4 {[%clk 0:00:29]} 27. d5 {[%clk 0:00:51]}  exd5 {[%clk 0:00:21]} 28. Rxb7 {[%clk 0:00:33]}  Kxb7 {[%clk 0:00:19]} 29. Qxd5+ {[%clk 0:00:33]}  Kc8 {[%clk 0:00:03]} 30. Qa8+ {[%clk 0:00:21]}  Kc7 {[%clk 0:00:03]} 31. e6+ {[%clk 0:00:22]} 1-0


[Site "https://www.chess.com"]

[Event "Titled Tuesday Blitz December 20 Early 2022"]
[White "Kirillov-Dmitry"]
[Black "LileKoridze"]
[WhiteElo "2444"]
[BlackElo "2345"]
[Result "1-0"]
[Round "11"]
[TimeControl "180+2"]
[Date "2022.12.20"]
[WhiteClock "0:00:08"]
[BlackClock "0:00:05"]

1. e4 {[%clk 0:03:00]}  c5 {[%clk 0:02:56]} 2. Nc3 {[%clk 0:02:59]}  Nc6 {[%clk 0:02:55]} 3. f4 {[%clk 0:02:59]}  a6 {[%clk 0:02:53]} 4. a4 {[%clk 0:02:57]}  e6 {[%clk 0:02:53]} 5. Bc4 {[%clk 0:02:50]}  Nge7 {[%clk 0:02:52]} 6. e5 {[%clk 0:02:50]}  d5 {[%clk 0:02:46]} 7. exd6 {[%clk 0:02:49]}  Qxd6 {[%clk 0:02:46]} 8. d3 {[%clk 0:02:50]}  Nd5 {[%clk 0:02:33]} 9. Ne4 {[%clk 0:02:40]}  Qc7 {[%clk 0:02:29]} 10. Ne2 {[%clk 0:02:38]}  Rb8 {[%clk 0:01:45]} 11. N4c3 {[%clk 0:01:55]}  Nxc3 {[%clk 0:01:41]} 12. Nxc3 {[%clk 0:01:56]}  Be7 {[%clk 0:01:39]} 13. O-O {[%clk 0:01:56]}  O-O {[%clk 0:01:37]} 14. Be3 {[%clk 0:01:56]}  Rd8 {[%clk 0:01:34]} 15. f5 {[%clk 0:01:35]}  Nd4 {[%clk 0:01:08]} 16. fxe6 {[%clk 0:01:06]}  Bxe6 {[%clk 0:01:05]} 17. Bxe6 {[%clk 0:01:05]}  Nxe6 {[%clk 0:01:05]} 18. Qf3 {[%clk 0:01:01]}  Bg5 {[%clk 0:00:18]} 19. Rae1 {[%clk 0:00:21]}  Bxe3+ {[%clk 0:00:17]} 20. Rxe3 {[%clk 0:00:22]}  Nd4 {[%clk 0:00:17]} 21. Qf2 {[%clk 0:00:18]}  Re8 {[%clk 0:00:16]} 22. Ne4 {[%clk 0:00:18]}  f5 {[%clk 0:00:15]} 23. Ng5 {[%clk 0:00:09]}  h6 {[%clk 0:00:13]} 24. Nf3 {[%clk 0:00:07]}  Rxe3 {[%clk 0:00:13]} 25. Qxe3 {[%clk 0:00:07]}  Nxc2 {[%clk 0:00:13]} 26. Qe6+ {[%clk 0:00:06]}  Kh7 {[%clk 0:00:12]} 27. Qxf5+ {[%clk 0:00:06]}  Kg8 {[%clk 0:00:12]} 28. Ne5 {[%clk 0:00:07]}  Ne3 {[%clk 0:00:08]} 29. Qe6+ {[%clk 0:00:06]}  Kh7 {[%clk 0:00:06]} 30. Rf7 {[%clk 0:00:06]}  Qc8 {[%clk 0:00:05]} 31. Qg6+ {[%clk 0:00:07]}  Kh8 {[%clk 0:00:05]} 32. Qxg7# {[%clk 0:00:08]} 1-0


[Site "https://www.chess.com"]

[Event "Titled Tuesday Blitz December 20 Early 2022"]
[White "Kucherov, Konstantin"]
[Black "Dreux, Vincent"]
[WhiteFideId "34136280"]
[BlackFideId "658960"]
[WhiteElo "1983"]
[BlackElo "1937"]
[Result "0-1"]
[Round "11"]
[TimeControl "180+2"]
[Date "2022.12.20"]
[WhiteClock "0:00:08"]
[BlackClock "0:00:07"]

1. d4 {[%clk 0:03:00]}  d5 {[%clk 0:03:00]} 2. c4 {[%clk 0:03:00]}  e6 {[%clk 0:03:00]} 3. Nc3 {[%clk 0:03:00]}  c6 {[%clk 0:03:00]} 4. e3 {[%clk 0:02:59]}  f5 {[%clk 0:02:59]} 5. g4 {[%clk 0:02:58]}  Nf6 {[%clk 0:02:55]} 6. gxf5 {[%clk 0:02:56]}  exf5 {[%clk 0:02:56]} 7. Bd3 {[%clk 0:02:56]}  Be6 {[%clk 0:02:46]} 8. b3 {[%clk 0:02:50]}  Ne4 {[%clk 0:02:40]} 9. Qc2 {[%clk 0:02:48]}  Bb4 {[%clk 0:02:38]} 10. Ne2 {[%clk 0:02:47]}  O-O {[%clk 0:02:34]} 11. Bb2 {[%clk 0:02:44]}  Qh4 {[%clk 0:02:33]} 12. Nf4 {[%clk 0:02:41]}  Bf7 {[%clk 0:02:24]} 13. a3 {[%clk 0:02:35]}  Bd6 {[%clk 0:02:20]} 14. Ng2 {[%clk 0:02:24]}  Qh3 {[%clk 0:02:15]} 15. Bf1 {[%clk 0:02:23]}  Qf3 {[%clk 0:01:56]} 16. Qe2 {[%clk 0:02:12]}  Bh5 {[%clk 0:01:49]} 17. Qxf3 {[%clk 0:02:08]}  Bxf3 {[%clk 0:01:48]} 18. h4 {[%clk 0:01:59]}  Nxc3 {[%clk 0:01:41]} 19. Bxc3 {[%clk 0:01:57]}  Nd7 {[%clk 0:01:42]} 20. Rg1 {[%clk 0:01:51]}  Nf6 {[%clk 0:01:35]} 21. Be2 {[%clk 0:01:47]}  Bxe2 {[%clk 0:01:29]} 22. Kxe2 {[%clk 0:01:46]}  Ne4 {[%clk 0:01:30]} 23. Bb2 {[%clk 0:01:45]}  f4 {[%clk 0:01:30]} 24. Nxf4 {[%clk 0:01:27]}  Bxf4 {[%clk 0:01:29]} 25. exf4 {[%clk 0:01:27]}  Rxf4 {[%clk 0:01:26]} 26. f3 {[%clk 0:01:28]}  Nd6 {[%clk 0:01:19]} 27. cxd5 {[%clk 0:01:13]}  cxd5 {[%clk 0:01:10]} 28. Rg4 {[%clk 0:01:12]}  Re8+ {[%clk 0:00:58]} 29. Kf2 {[%clk 0:01:07]}  Ne4+ {[%clk 0:00:50]} 30. Kg2 {[%clk 0:01:06]}  Rxg4+ {[%clk 0:00:44]} 31. fxg4 {[%clk 0:01:06]}  Rf8 {[%clk 0:00:41]} 32. Rf1 {[%clk 0:00:59]}  Rxf1 {[%clk 0:00:40]} 33. Kxf1 {[%clk 0:00:59]}  Nd2+ {[%clk 0:00:38]} 34. Ke2 {[%clk 0:00:59]}  Nxb3 {[%clk 0:00:39]} 35. Ke3 {[%clk 0:00:56]}  Na5 {[%clk 0:00:34]} 36. Bc1 {[%clk 0:00:54]}  Kf7 {[%clk 0:00:33]} 37. Kd3 {[%clk 0:00:51]}  Ke6 {[%clk 0:00:31]} 38. Kc3 {[%clk 0:00:50]}  Nc6 {[%clk 0:00:31]} 39. Be3 {[%clk 0:00:47]}  b5 {[%clk 0:00:25]} 40. Kb3 {[%clk 0:00:47]}  g6 {[%clk 0:00:20]} 41. a4 {[%clk 0:00:34]}  a6 {[%clk 0:00:19]} 42. axb5 {[%clk 0:00:33]}  axb5 {[%clk 0:00:20]} 43. Kc3 {[%clk 0:00:33]}  h5 {[%clk 0:00:21]} 44. gxh5 {[%clk 0:00:32]}  gxh5 {[%clk 0:00:22]} 45. Bg5 {[%clk 0:00:31]}  Kf5 {[%clk 0:00:22]} 46. Kd3 {[%clk 0:00:30]}  b4 {[%clk 0:00:18]} 47. Be3 {[%clk 0:00:23]}  b3 {[%clk 0:00:16]} 48. Kc3 {[%clk 0:00:22]}  Ke4 {[%clk 0:00:15]} 49. Bf2 {[%clk 0:00:21]}  b2 {[%clk 0:00:13]} 50. Kxb2 {[%clk 0:00:20]}  Kd3 {[%clk 0:00:14]} 51. Kc1 {[%clk 0:00:18]}  Nxd4 {[%clk 0:00:14]} 52. Kd1 {[%clk 0:00:18]}  Nf5 {[%clk 0:00:13]} 53. Ke1 {[%clk 0:00:16]}  d4 {[%clk 0:00:12]} 54. Kd1 {[%clk 0:00:16]}  Ke4 {[%clk 0:00:09]} 55. Ke2 {[%clk 0:00:16]}  d3+ {[%clk 0:00:09]} 56. Kd2 {[%clk 0:00:16]}  Nd6 {[%clk 0:00:07]} 57. Bg3 {[%clk 0:00:15]}  Nc4+ {[%clk 0:00:07]} 58. Kd1 {[%clk 0:00:14]}  Ke3 {[%clk 0:00:06]} 59. Be1 {[%clk 0:00:14]}  Nb2+ {[%clk 0:00:05]} 60. Kc1 {[%clk 0:00:14]}  Ke2 {[%clk 0:00:05]} 61. Bb4 {[%clk 0:00:11]}  Nc4 {[%clk 0:00:05]} 62. Bc3 {[%clk 0:00:09]}  d2+ {[%clk 0:00:05]} 63. Bxd2 {[%clk 0:00:08]}  Nxd2 {[%clk 0:00:06]} 64. Kc2 {[%clk 0:00:08]}  Nf3 {[%clk 0:00:07]} 0-1


[Site "https://www.chess.com"]

[Event "Titled Tuesday Blitz December 20 Early 2022"]
[White "Larochelle, Martial"]
[Black "PavelChernomordik"]
[WhiteFideId "2016311"]
[WhiteElo "2039"]
[BlackElo "2434"]
[Result "0-1"]
[Round "11"]
[TimeControl "180+2"]
[Date "2022.12.20"]
[WhiteClock "0:00:45"]
[BlackClock "0:00:28"]

1. d4 {[%clk 0:03:00]}  g6 {[%clk 0:02:59]} 2. c4 {[%clk 0:03:01]}  Bg7 {[%clk 0:02:58]} 3. e4 {[%clk 0:03:00]}  Nc6 {[%clk 0:02:58]} 4. d5 {[%clk 0:02:59]}  Nd4 {[%clk 0:02:58]} 5. Be3 {[%clk 0:02:57]}  e5 {[%clk 0:02:53]} 6. dxe6 {[%clk 0:02:57]}  dxe6 {[%clk 0:02:53]} 7. Nc3 {[%clk 0:02:55]}  c5 {[%clk 0:02:52]} 8. Nge2 {[%clk 0:02:47]}  Ne7 {[%clk 0:02:51]} 9. Ng3 {[%clk 0:02:44]}  Nec6 {[%clk 0:02:50]} 10. Be2 {[%clk 0:02:44]}  O-O {[%clk 0:02:48]} 11. O-O {[%clk 0:02:37]}  f5 {[%clk 0:02:48]} 12. exf5 {[%clk 0:02:36]}  exf5 {[%clk 0:02:42]} 13. Nd5 {[%clk 0:02:34]}  Be6 {[%clk 0:02:34]} 14. Bf3 {[%clk 0:02:32]}  Nxf3+ {[%clk 0:02:31]} 15. Qxf3 {[%clk 0:02:28]}  Ne5 {[%clk 0:02:30]} 16. Qe2 {[%clk 0:02:25]}  Nxc4 {[%clk 0:02:14]} 17. Qxc4 {[%clk 0:02:20]}  Qxd5 {[%clk 0:02:11]} 18. Qxd5 {[%clk 0:02:18]}  Bxd5 {[%clk 0:02:11]} 19. Bxc5 {[%clk 0:02:18]}  Rfc8 {[%clk 0:02:08]} 20. Ba3 {[%clk 0:02:16]}  Rc2 {[%clk 0:02:03]} 21. Rfc1 {[%clk 0:02:09]}  Rac8 {[%clk 0:02:02]} 22. Rxc2 {[%clk 0:02:06]}  Rxc2 {[%clk 0:02:01]} 23. Nf1 {[%clk 0:02:06]}  f4 {[%clk 0:01:55]} 24. Rd1 {[%clk 0:01:57]}  Bc6 {[%clk 0:01:41]} 25. b3 {[%clk 0:01:42]}  Rxa2 {[%clk 0:01:40]} 26. Bd6 {[%clk 0:01:42]}  g5 {[%clk 0:01:35]} 27. h4 {[%clk 0:01:34]}  h6 {[%clk 0:01:35]} 28. hxg5 {[%clk 0:01:34]}  hxg5 {[%clk 0:01:35]} 29. Nd2 {[%clk 0:01:35]}  Bd4 {[%clk 0:01:28]} 30. Nf3 {[%clk 0:01:27]}  Bxf2+ {[%clk 0:01:26]} 31. Kh1 {[%clk 0:01:26]}  g4 {[%clk 0:01:16]} 32. Ne5 {[%clk 0:01:22]}  Be3 {[%clk 0:01:08]} 33. Nxc6 {[%clk 0:01:17]}  bxc6 {[%clk 0:01:07]} 34. Rf1 {[%clk 0:01:16]}  Rf2 {[%clk 0:01:01]} 35. Rxf2 {[%clk 0:01:14]}  Bxf2 {[%clk 0:01:00]} 36. Bxf4 {[%clk 0:01:15]}  Kf7 {[%clk 0:01:00]} 37. g3 {[%clk 0:01:15]}  Ke6 {[%clk 0:00:59]} 38. Kg2 {[%clk 0:01:15]}  Bd4 {[%clk 0:00:59]} 39. Kf1 {[%clk 0:01:15]}  Kd5 {[%clk 0:00:59]} 40. Ke2 {[%clk 0:01:10]}  Ke4 {[%clk 0:00:59]} 41. Bd2 {[%clk 0:01:04]}  Be5 {[%clk 0:00:56]} 42. Be1 {[%clk 0:01:04]}  a6 {[%clk 0:00:55]} 43. Bf2 {[%clk 0:01:04]}  Bd4 {[%clk 0:00:52]} 44. Be1 {[%clk 0:01:03]}  c5 {[%clk 0:00:48]} 45. Bd2 {[%clk 0:01:02]}  Be5 {[%clk 0:00:46]} 46. Be1 {[%clk 0:01:02]}  Kd4 {[%clk 0:00:45]} 47. Kd2 {[%clk 0:00:57]}  c4 {[%clk 0:00:39]} 48. bxc4 {[%clk 0:00:55]}  Kxc4 {[%clk 0:00:39]} 49. Ke3 {[%clk 0:00:56]}  Bc3 {[%clk 0:00:35]} 50. Bf2 {[%clk 0:00:41]}  Bd4+ {[%clk 0:00:35]} 51. Kf4 {[%clk 0:00:40]}  Bxf2 {[%clk 0:00:34]} 52. Kxg4 {[%clk 0:00:41]}  a5 {[%clk 0:00:34]} 53. Kf5 {[%clk 0:00:41]}  Bxg3 {[%clk 0:00:34]} 54. Ke6 {[%clk 0:00:41]}  a4 {[%clk 0:00:34]} 55. Kd7 {[%clk 0:00:42]}  a3 {[%clk 0:00:33]} 56. Kc8 {[%clk 0:00:43]}  a2 {[%clk 0:00:33]} 57. Kb7 {[%clk 0:00:44]}  a1=Q {[%clk 0:00:33]} 58. Kc6 {[%clk 0:00:45]}  Qa6+ {[%clk 0:00:32]} 59. Kd7 {[%clk 0:00:45]}  Kd5 {[%clk 0:00:32]} 60. Ke8 {[%clk 0:00:44]}  Qe6+ {[%clk 0:00:31]} 61. Kd8 {[%clk 0:00:44]}  Qf7 {[%clk 0:00:29]} 62. Kc8 {[%clk 0:00:45]}  Qc7# {[%clk 0:00:28]} 0-1


[Site "https://www.chess.com"]

[Event "Titled Tuesday Blitz December 20 Early 2022"]
[White "Liyanage, Ranindu Dilshan"]
[Black "Derybas, Igor"]
[WhiteFideId "9915834"]
[BlackFideId "41846400"]
[WhiteElo "2342"]
[BlackElo "1490"]
[Result "1-0"]
[Round "11"]
[TimeControl "180+2"]
[Date "2022.12.20"]
[WhiteClock "0:00:10"]
[BlackClock "0:00:05"]

1. e4 {[%clk 0:03:00]}  e6 {[%clk 0:02:59]} 2. d4 {[%clk 0:02:59]}  d5 {[%clk 0:03:00]} 3. Nc3 {[%clk 0:03:00]}  Nf6 {[%clk 0:02:59]} 4. exd5 {[%clk 0:03:00]}  exd5 {[%clk 0:02:59]} 5. Bd3 {[%clk 0:03:00]}  Bb4 {[%clk 0:02:59]} 6. Ne2 {[%clk 0:03:00]}  h6 {[%clk 0:02:59]} 7. O-O {[%clk 0:02:59]}  O-O {[%clk 0:02:59]} 8. h3 {[%clk 0:02:53]}  Nbd7 {[%clk 0:02:56]} 9. Ng3 {[%clk 0:02:53]}  Re8 {[%clk 0:02:52]} 10. Qf3 {[%clk 0:02:52]}  Nf8 {[%clk 0:02:49]} 11. Nce2 {[%clk 0:02:51]}  Ng6 {[%clk 0:02:45]} 12. Nf5 {[%clk 0:02:43]}  Ne4 {[%clk 0:02:40]} 13. Ne3 {[%clk 0:02:20]}  Nh4 {[%clk 0:01:39]} 14. Qh5 {[%clk 0:02:18]}  g6 {[%clk 0:01:40]} 15. Qxd5 {[%clk 0:02:00]}  Bd6 {[%clk 0:01:22]} 16. Bxe4 {[%clk 0:01:44]}  c6 {[%clk 0:01:22]} 17. Qb3 {[%clk 0:01:45]}  Rxe4 {[%clk 0:01:22]} 18. Qd3 {[%clk 0:01:44]}  f5 {[%clk 0:01:12]} 19. Nc4 {[%clk 0:01:28]}  Bf8 {[%clk 0:01:06]} 20. c3 {[%clk 0:01:06]}  Be6 {[%clk 0:01:05]} 21. Nd2 {[%clk 0:01:04]}  Bd5 {[%clk 0:01:02]} 22. Nxe4 {[%clk 0:00:46]}  Bxe4 {[%clk 0:01:02]} 23. Qg3 {[%clk 0:00:47]}  Bxg2 {[%clk 0:00:57]} 24. Rd1 {[%clk 0:00:46]}  Bf3 {[%clk 0:00:51]} 25. Re1 {[%clk 0:00:46]}  Bxe2 {[%clk 0:00:35]} 26. Rxe2 {[%clk 0:00:45]}  g5 {[%clk 0:00:33]} 27. Bf4 {[%clk 0:00:42]}  Qd5 {[%clk 0:00:31]} 28. Rc1 {[%clk 0:00:26]}  Bg7 {[%clk 0:00:28]} 29. Be5 {[%clk 0:00:22]}  Nf3+ {[%clk 0:00:27]} 30. Kf1 {[%clk 0:00:22]}  f4 {[%clk 0:00:26]} 31. Qg2 {[%clk 0:00:18]}  Bxe5 {[%clk 0:00:23]} 32. dxe5 {[%clk 0:00:19]}  Nd2+ {[%clk 0:00:22]} 33. Rxd2 {[%clk 0:00:20]}  Qxd2 {[%clk 0:00:22]} 34. Re1 {[%clk 0:00:20]}  Qd3+ {[%clk 0:00:18]} 35. Kg1 {[%clk 0:00:20]}  Re8 {[%clk 0:00:17]} 36. Qg4 {[%clk 0:00:16]}  Qg6 {[%clk 0:00:13]} 37. e6 {[%clk 0:00:16]}  Re7 {[%clk 0:00:12]} 38. Re5 {[%clk 0:00:14]}  Kg7 {[%clk 0:00:12]} 39. Qe2 {[%clk 0:00:11]}  Qb1+ {[%clk 0:00:11]} 40. Kh2 {[%clk 0:00:10]}  Qxa2 {[%clk 0:00:11]} 41. Qe4 {[%clk 0:00:10]}  Qxb2 {[%clk 0:00:09]} 42. Qd4 {[%clk 0:00:11]}  Kg6 {[%clk 0:00:06]} 43. Qe4+ {[%clk 0:00:09]}  Kg7 {[%clk 0:00:05]} 44. Qd4 {[%clk 0:00:10]}  Kg6 {[%clk 0:00:02]} 45. Kg2 {[%clk 0:00:10]}  Qc2 {[%clk 0:00:01]} 46. Qd8 {[%clk 0:00:08]}  f3+ {[%clk 0:00:01]} 47. Kg3 {[%clk 0:00:07]}  Kf6 {[%clk 0:00:01]} 48. Qh8+ {[%clk 0:00:06]}  Kg6 {[%clk 0:00:01]} 49. Qg8+ {[%clk 0:00:05]}  Kf6 {[%clk 0:00:01]} 50. Qh8+ {[%clk 0:00:05]}  Kg6 {[%clk 0:00:02]} 51. Re3 {[%clk 0:00:06]}  Qf5 {[%clk 0:00:02]} 52. Qg8+ {[%clk 0:00:06]}  Rg7 {[%clk 0:00:02]} 53. Qe8+ {[%clk 0:00:06]}  Kf6 {[%clk 0:00:03]} 54. Qf8+ {[%clk 0:00:06]}  Kg6 {[%clk 0:00:03]} 55. Qxf5+ {[%clk 0:00:07]}  Kxf5 {[%clk 0:00:04]} 56. e7 {[%clk 0:00:08]}  Rxe7 {[%clk 0:00:04]} 57. Rxe7 {[%clk 0:00:09]}  b5 {[%clk 0:00:05]} 58. Rxa7 {[%clk 0:00:09]}  Ke4 {[%clk 0:00:01]} 59. Rh7 {[%clk 0:00:09]}  c5 {[%clk 0:00:02]} 60. Rxh6 {[%clk 0:00:09]}  c4 {[%clk 0:00:02]} 61. Rb6 {[%clk 0:00:09]}  Kd3 {[%clk 0:00:03]} 62. Rxb5 {[%clk 0:00:09]}  Kxc3 {[%clk 0:00:04]} 63. Rxg5 {[%clk 0:00:09]}  Kd3 {[%clk 0:00:04]} 64. Rc5 {[%clk 0:00:09]}  c3 {[%clk 0:00:05]} 65. Kxf3 {[%clk 0:00:10]} 1-0


[Site "https://www.chess.com"]